fUST/lending_fUST_20250615
["ID","MTS","AMOUNT","RATE_DAILY","PERIOD"]
[365796785,1749917453533,-460.0,0.00023561,4]
[365796786,1749917453543,-460.0,0.00023561,4]
[365796787,1749917453553,-460.0,0.00023561,4]
[365796788,1749917453564,-460.0,0.00023561,4]
[365796789,1749917453575,-465.33,0.00023561,4]
[365796790,1749917453586,-617.49,0.00023561,4]
[365796791,1749917453596,-460.0,0.00023561,4]
[365796792,1749917453607,-460.0,0.00023561,4]
[365796793,1749917453618,-460.0,0.00023561,4]
[365796794,1749917453628,-749.09,0.00023561,4]
[365796795,1749917453639,-460.0,0.00023561,4]
[365796796,1749917453649,-580.0,0.00023561,4]
[365796797,1749917453659,-460.0,0.00023561,4]
[365796798,1749917453669,-460.0,0.00023561,4]
[365796799,1749917453679,-460.0,0.00023561,4]
[365796800,1749917453691,-460.0,0.00023561,4]
[365796801,1749917453702,-460.0,0.00023561,4]
[365796802,1749917453712,-480.16,0.00023561,4]
[365796803,1749917453722,-484.22,0.00023561,4]
[365796804,1749917453733,-1402.17,0.00023561,4]
[365796805,1749917453743,-2509.29,0.00023561,4]
[365796806,1749917453754,-460.0,0.00023561,4]
[365796807,1749917453765,-480.88,0.00023561,4]
[365796808,1749917453776,-460.0,0.00023561,4]
[365796809,1749917453787,-2710.13,0.00023561,4]
[365796810,1749917453797,-2178.11,0.00023561,4]
[365796811,1749917453807,-1253.41,0.00023561,4]
[365796812,1749917453818,-219.56409778,0.00023561,4]
[365796813,1749917453829,-2862.66,0.00023561,4]
[365796814,1749917453840,-1709.23,0.00023561,4]
[365796815,1749917453850,-460.0,0.00023561,4]
[365796816,1749917453861,-477.81,0.00023561,4]
[365796817,1749917453872,-460.0,0.00023561,4]
[365796818,1749917453882,-460.0,0.00023561,4]
[365796819,1749917453892,-460.0,0.00023561,4]
[365796820,1749917453902,-460.0,0.00023561,4]
[365796821,1749917453913,-460.0,0.00023561,4]
[365796822,1749917453923,-1990.39,0.00023561,4]
[365796823,1749917453934,-460.0,0.00023561,4]
[365796824,1749917453944,-460.0,0.00023561,2]
[365796825,1749917453955,-1408.95,0.00023561,4]
[365796826,1749917453964,-460.0,0.00023561,4]
[365796827,1749917453975,-460.0,0.00023561,4]
[365796828,1749917453985,-1218.93,0.00023561,4]
[365796829,1749917453995,-460.0,0.00023561,4]
[365796830,1749917454006,-1961.21,0.00023561,4]
[365796831,1749917454015,-672.05,0.00023561,4]
[365796832,1749917454025,-460.0,0.00023561,4]
[365796833,1749917454035,-1037.98,0.00023561,4]
[365796834,1749917454045,-1260.56,0.00023561,4]
[365796835,1749917454174,-589.35,0.00023561,4]
[365796836,1749917454185,-460.0,0.00023561,4]
[365796837,1749917454195,-460.0,0.00023561,4]
[365796838,1749917454205,-816.54,0.00023561,4]
[365796839,1749917454215,-835.41710878,0.00023593,2]
[365796840,1749917454224,-845.10789306,0.00023593,2]
[365796841,1749917454234,-582.9665213,0.00023659,9]
[365796842,1749917454243,-447.17023461,0.0002366,2]
[365796843,1749917454253,-405.0,0.00023679,2]
[365796844,1749917454262,-3000.0,0.000237,2]
[365796845,1749917454271,-3000.0,0.0002371,2]
[365796846,1749917454282,-620.67332547,0.00023714,30]
[365796847,1749917454291,-3000.0,0.0002372,2]
[365796848,1749917454301,-158.66118947,0.00023726,2]
[365796849,1749917454311,-3000.0,0.0002373,2]
[365796850,1749917454321,-3000.0,0.0002374,2]
[365796851,1749917454330,-442.87257805,0.00023742,2]
[365796852,1749917454340,-3000.0,0.0002375,2]
[365796853,1749917454350,-3000.0,0.0002376,2]
[365796854,1749917454360,-250.0,0.00023761,2]
[365796855,1749917454370,-582.9665213,0.00023762,9]
[365796856,1749917454380,-3000.0,0.0002377,2]
[365796857,1749917454390,-151.0,0.0002378,7]
[365796858,1749917454400,-3000.0,0.0002378,2]
[365796859,1749917454410,-151.0,0.0002378,7]
[365796860,1749917454419,-151.0,0.0002378,7]
[365796861,1749917454429,-151.0,0.0002378,7]
[365796862,1749917454439,-151.0,0.0002378,7]
[365796863,1749917454448,-151.0,0.0002378,7]
[365796864,1749917454458,-151.0,0.0002378,7]
[365796865,1749917454467,-151.0,0.0002378,7]
[365796866,1749917454477,-3000.0,0.0002379,2]
[365796867,1749917454487,-3000.0,0.000238,2]
[365796868,1749917454496,-3000.0,0.0002381,2]
[365796869,1749917454505,-3000.0,0.0002382,2]
[365796870,1749917454515,-1000.0,0.00023821,2]
[365796871,1749917454525,-1200.0,0.00023821,2]
[365796872,1749917454534,-1000.0,0.00023821,2]
[365796873,1749917454545,-1000.0,0.00023821,2]
[365796874,1749917454555,-3000.0,0.0002383,2]
[365796875,1749917454565,-460.0,0.00023835,4]
[365796876,1749917454576,-601.25,0.00023835,4]
[365796877,1749917454585,-460.0,0.00023835,4]
[365796878,1749917454595,-460.0,0.00023835,4]
[365796879,1749917454606,-460.0,0.00023835,4]
[365796880,1749917454616,-460.0,0.00023835,4]
[365796881,1749917454627,-460.0,0.00023835,4]
[365796882,1749917454637,-460.0,0.00023835,4]
[365796883,1749917454647,-460.0,0.00023835,4]
[365796884,1749917454657,-460.0,0.00023835,4]
[365796885,1749917454666,-460.0,0.00023835,4]
[365796886,1749917454676,-460.0,0.00023835,4]
[365796887,1749917454686,-460.0,0.00023835,4]
[365796888,1749917454696,-460.0,0.00023835,4]
[365796889,1749917454706,-460.0,0.00023835,4]
[365796890,1749917454716,-460.0,0.00023835,4]
[365796891,1749917454726,-2480.54,0.00023835,4]
[365796892,1749917454736,-460.0,0.00023835,4]
[365796893,1749917454745,-649.92,0.00023835,4]
[365796894,1749917454755,-460.0,0.00023835,4]
[365796895,1749917454764,-1012.69,0.00023835,4]
[365796896,1749917454774,-460.0,0.00023835,4]
[365796897,1749917454784,-460.0,0.00023835,4]
[365796898,1749917454793,-460.0,0.00023835,4]
[365796899,1749917454803,-460.0,0.00023835,4]
[365796900,1749917454813,-460.0,0.00023835,4]
[365796901,1749917454822,-465.33,0.00023835,4]
[365796902,1749917454833,-617.49,0.00023835,4]
[365796903,1749917454843,-524.58243388,0.00023835,4]
[365796904,1749917454855,-460.0,0.00023835,4]
[365796905,1749917454864,-460.0,0.00023835,4]
[365796906,1749917454875,-749.09,0.00023835,4]
[365796907,1749917454886,-460.0,0.00023835,4]
[365796908,1749917454896,-460.0,0.00023835,4]
[365796909,1749917454906,-460.0,0.00023835,4]
[365796910,1749917454916,-460.0,0.00023835,4]
[365796911,1749917454925,-460.0,0.00023835,4]
[365796912,1749917454935,-480.16,0.00023835,4]
[365796913,1749917454945,-484.22,0.00023835,4]
[365796914,1749917454954,-1402.17,0.00023835,4]
[365796915,1749917454964,-2509.29,0.00023835,4]
[365796916,1749917454973,-460.0,0.00023835,4]
[365796917,1749917454983,-480.88,0.00023835,4]
[365796918,1749917454992,-460.0,0.00023835,4]
[365796919,1749917455002,-2710.13,0.00023835,4]
[365796920,1749917455011,-2178.11,0.00023835,4]
[365796921,1749917455020,-1253.41,0.00023835,4]
[365796922,1749917455030,-2862.66,0.00023835,4]
[365796923,1749917455040,-1709.23,0.00023835,4]
[365796924,1749917455050,-460.0,0.00023835,4]
[365796925,1749917455060,-477.81,0.00023835,4]
[365796926,1749917455070,-460.0,0.00023835,4]
[365796927,1749917455080,-460.0,0.00023835,4]
[365796928,1749917455090,-460.0,0.00023835,4]
[365796929,1749917455100,-460.0,0.00023835,4]
[365796930,1749917455112,-460.0,0.00023835,4]
[365796931,1749917455122,-1990.39,0.00023835,4]
[365796932,1749917455132,-460.0,0.00023835,4]
[365796933,1749917455142,-460.0,0.00023835,2]
[365796934,1749917455152,-1408.95,0.00023835,4]
[365796935,1749917455162,-460.0,0.00023835,4]
[365796936,1749917455171,-1218.93,0.00023835,4]
[365796937,1749917455181,-460.0,0.00023835,4]
[365796938,1749917455190,-1961.21,0.00023835,4]
[365796939,1749917455200,-672.05,0.00023835,4]
[365796940,1749917455209,-460.0,0.00023835,4]
[365796941,1749917455219,-1037.98,0.00023835,4]
[365796942,1749917455229,-1260.56,0.00023835,4]
[365796943,1749917455239,-589.35,0.00023835,4]
[365796944,1749917455248,-460.0,0.00023835,4]
[365796945,1749917455258,-460.0,0.00023835,4]
[365796946,1749917455267,-816.54,0.00023835,4]
[365796947,1749917455278,-3000.0,0.0002384,2]
[365796948,1749917455287,-3000.0,0.0002385,2]
[365796949,1749917455296,-3000.0,0.0002386,2]
[365796950,1749917455305,-582.9665213,0.00023866,10]
[365796951,1749917455315,-3000.0,0.0002387,2]
[365796952,1749917455324,-150.0,0.00023873,2]
[365796953,1749917455334,-168.0,0.00023875,2]
[365796954,1749917455343,-3000.0,0.0002388,2]
[365796955,1749917455353,-3000.0,0.0002389,2]
[365796956,1749917455363,-20889.78229819,0.000239,5]
[365796957,1749917455372,-151.0,0.000239,7]
[365796958,1749917455383,-151.0,0.000239,7]
[365796959,1749917455393,-151.909552,0.000239,7]
[365796960,1749917455403,-151.0,0.000239,7]
[365796961,1749917455413,-151.0,0.000239,7]
[365796962,1749917455422,-151.0,0.000239,7]
[365796963,1749917455433,-164.389164,0.000239,7]
[365796964,1749917455442,-164.389164,0.000239,7]
[365796965,1749917455452,-753.65,0.000239,7]
[365796966,1749917455461,-172.72022,0.000239,7]
[365796967,1749917455470,-3000.0,0.000239,2]
[365796968,1749917455480,-151.0,0.000239,7]
[365796969,1749917455489,-151.0,0.000239,7]
[365796970,1749917455498,-151.0,0.000239,7]
[365796971,1749917455507,-151.0,0.000239,7]
[365796972,1749917455517,-151.0,0.000239,7]
[365796973,1749917455526,-151.0,0.000239,7]
[365796974,1749917455536,-280.633622,0.000239,7]
[365796975,1749917455545,-170.630803,0.000239,7]
[365796976,1749917455554,-170.630803,0.000239,7]
[365796977,1749917455563,-151.0,0.000239,7]
[365796978,1749917455572,-57290.79725125,0.000239,7]
[365796979,1749917455582,-3000.0,0.0002391,2]
[365796980,1749917455591,-3946.295596,0.0002392,2]
[365796981,1749917455601,-582.9665213,0.00023969,10]
[365796982,1749917455611,-600.0,0.00023988,2]
[365796983,1749917455620,-332594.52242168,0.00024,2]
[365796984,1749917455737,-46244.33163009,0.00024,2]
[365796985,1749917455905,-460.0,0.00021917,4]
[365796986,1749917455915,-460.0,0.00021917,4]
[365796987,1749917455932,-460.0,0.00021917,4]
[365796988,1749917455944,-464.70250225,0.00022191,4]
[365796989,1749917455954,-460.0,0.00022191,4]
[365796990,1749917455963,-460.0,0.00022191,4]
[365796991,1749917455973,-460.0,0.00022465,4]
[365796992,1749917455983,-431.49474757,0.00022466,2]
[365796993,1749917455993,-460.0,0.00022739,4]
[365796994,1749917456003,-460.0,0.00023013,4]
[365796995,1749917456013,-460.0,0.00023287,4]
[365796996,1749917456022,-460.0,0.00023561,4]
[365796997,1749917456032,-229.82479369,0.00023585,2]
[365796998,1749917456041,-2563.96329413,0.00024,2]
[365796999,1749917456216,-1355.13,0.0002141,2]
[365797000,1749917456226,-168.13025455,0.00021917,4]
[365797001,1749917456236,-350.0,0.00021917,4]
[365797002,1749917456245,-176.9937618,0.00023342,2]
[365797003,1749917456254,-158.8714084,0.00023342,2]
[365797004,1749917456264,-573.7859869,0.00023342,2]
[365797005,1749917456273,-2710.25,0.00023356,2]
[365797006,1749917456283,-460.0,0.00023835,4]
[365797007,1749917456292,-15596.32189341,0.00024,2]
[365797008,1749917456308,-1127.30004864,0.00024,2]
[365797010,1749917503213,460.0,0.00024989,60]
[365797011,1749917535770,320.809063,0.00013699,2]
[365797016,1749917786893,1415.09019679,0.00019938,2]
[365797017,1749917786918,3584.90980321,0.00019938,2]
[365797021,1749917852118,200.0,0.00024062,120]
[365797024,1749917912164,200.0,0.00024619,120]
[365797027,1749917971254,200.0,0.00024297,120]
[365797030,1749918010741,438.37532896,0.00019455,2]
[365797031,1749918011065,438.37532896,0.00019993,2]
[365797033,1749918091464,200.0,0.00024006,120]
[365797035,1749918145962,3292.38013887,0.00019694,2]
[365797036,1749918145986,7754.0406,0.00019694,2]
[365797037,1749918146010,7754.0406,0.00019694,2]
[365797038,1749918146037,6099.53866113,0.00019694,2]
[365797039,1749918205086,1654.50193887,0.00019693,2]
[365797040,1749918205108,34.18697933,0.00019693,2]
[365797050,1749918391440,200.0,0.00023998,120]
[365797051,1749918426139,-246.163398,0.00020026,2]
[365797052,1749918426162,-1917.1309082,0.00020069,2]
[365797053,1749918426185,-320.809063,0.00020187,2]
[365797054,1749918426208,-186.181943,0.00020556,2]
[365797055,1749918426231,-168.0,0.00020643,2]
[365797056,1749918426253,-160.0,0.00020673,2]
[365797057,1749918426275,-168.0,0.00020728,2]
[365797058,1749918426297,-300.0,0.0002073,2]
[365797059,1749918426320,-39.25907277,0.0002073,2]
[365797073,1749918500667,438.6751455,0.00019866,2]
[365797076,1749918519857,178.85999476,0.0002,2]
[365797095,1749918608456,1787.40449099,0.000189,2]
[365797144,1749918632465,-438.6751455,0.00020044,2]
[365797146,1749918632475,-438.6751455,0.00020326,2]
[365797148,1749918632485,-154.15271675,0.00020599,2]
[365797150,1749918632495,-438.6751455,0.00020699,2]
[365797152,1749918632504,-300.0,0.00020732,2]
[365797154,1749918632513,-300.0,0.00020732,2]
[365797156,1749918632523,-300.0,0.00020732,2]
[365797158,1749918632532,-1200.0,0.00020732,2]
[365797160,1749918632542,-1318.46353044,0.00020733,2]
[365797193,1749918638577,-4566.15261156,0.00020733,2]
[365797194,1749918638587,-154.15271674,0.00021052,2]
[365797195,1749918638596,-5901.84,0.00021152,2]
[365797196,1749918638608,-360.54023137,0.00021152,2]
[365797197,1749918638617,-397.69057725,0.00021152,2]
[365797198,1749918638627,-500.0,0.00021152,2]
[365797200,1749918638637,-413.535769,0.00021152,2]
[365797201,1749918638646,-500.0,0.00021152,2]
[365797202,1749918638655,-500.0,0.00021152,2]
[365797203,1749918638665,-500.0,0.00021152,2]
[365797204,1749918638674,-500.0,0.00021152,2]
[365797205,1749918638683,-500.0,0.00021152,2]
[365797206,1749918638692,-500.0,0.00021152,2]
[365797207,1749918638702,-500.0,0.00021152,2]
[365797208,1749918638711,-500.0,0.00021152,2]
[365797209,1749918638720,-500.0,0.00021152,2]
[365797210,1749918638729,-500.0,0.00021152,2]
[365797211,1749918638739,-500.0,0.00021152,2]
[365797212,1749918638749,-476.225,0.00021152,2]
[365797213,1749918638759,-355.77412992,0.00021152,2]
[365797214,1749918638769,-500.0,0.00021152,2]
[365797215,1749918638778,-500.0,0.00021152,2]
[365797216,1749918638788,-623.97260795,0.00021152,2]
[365797217,1749918638797,-419.94862976,0.00021152,2]
[365797218,1749918638807,-500.0,0.00021152,2]
[365797219,1749918638816,-500.0,0.00021152,2]
[365797220,1749918638825,-500.0,0.00021152,2]
[365797221,1749918638835,-500.0,0.00021152,2]
[365797222,1749918638845,-500.0,0.00021152,2]
[365797223,1749918638856,-500.0,0.00021152,2]
[365797224,1749918638865,-500.0,0.00021152,2]
[365797225,1749918638874,-500.0,0.00021152,2]
[365797226,1749918638883,-499.38169526,0.00021152,2]
[365797227,1749918638892,-201.12823435,0.00021152,2]
[365797228,1749918638901,-22130.2893482,0.00021152,2]
[365797229,1749918638910,-5901.84,0.00021153,2]
[365797230,1749918638920,-5901.84,0.00021153,2]
[365797231,1749918638929,-5901.84,0.00021153,2]
[365797232,1749918638939,-500.0,0.00021154,2]
[365797233,1749918638949,-1346.05,0.0002124,2]
[365797234,1749918638959,-168.0,0.00021357,2]
[365797236,1749918638969,-168.0,0.00021391,2]
[365797237,1749918638979,-161.935,0.000214,2]
[365797239,1749918638988,-168.0,0.00021536,2]
[365797240,1749918638998,-256.0,0.00021726,2]
[365797241,1749918639008,-2331.34406888,0.00021817,2]
[365797242,1749918639017,-6089.66627963,0.00021817,2]
[365797243,1749918639027,-855.19043653,0.000219,6]
[365797244,1749918639036,-5901.84,0.00021901,2]
[365797245,1749918639046,-2238.13141957,0.00021903,2]
[365797246,1749918639055,-339.50956149,0.00021916,2]
[365797247,1749918639065,-500.0,0.00021916,2]
[365797248,1749918639077,-500.0,0.00021916,2]
[365797249,1749918639087,-500.0,0.00021916,2]
[365797250,1749918639097,-369.42600765,0.00021916,2]
[365797251,1749918639108,-500.0,0.00021916,2]
[365797252,1749918639119,-500.0,0.00021916,2]
[365797253,1749918639128,-500.0,0.00021916,2]
[365797254,1749918639138,-500.0,0.00021916,2]
[365797255,1749918639148,-500.0,0.00021916,2]
[365797256,1749918639157,-500.0,0.00021916,2]
[365797257,1749918639167,-300.0,0.00021916,2]
[365797258,1749918639177,-500.0,0.00021916,2]
[365797259,1749918639187,-5901.84,0.00021916,2]
[365797260,1749918639197,-5901.84,0.00021916,2]
[365797261,1749918639206,-5901.84,0.00021916,2]
[365797262,1749918639215,-5901.84,0.00021916,2]
[365797263,1749918639224,-5901.84,0.00021916,2]
[365797264,1749918639234,-5901.84,0.00021916,2]
[365797265,1749918639243,-5901.84,0.00021916,2]
[365797266,1749918639252,-5901.84,0.00021916,2]
[365797267,1749918639262,-5901.84,0.00021916,2]
[365797268,1749918639271,-5901.84,0.00021916,2]
[365797269,1749918639281,-5901.84,0.00021916,2]
[365797270,1749918639291,-160.0,0.00021916,2]
[365797271,1749918639300,-440.0,0.00021917,4]
[365797272,1749918639309,-430.0,0.00021917,4]
[365797273,1749918639318,-400.0,0.00021917,4]
[365797274,1749918639328,-460.0,0.00021917,4]
[365797275,1749918639337,-595.14464599,0.00021917,4]
[365797276,1749918639346,-460.0,0.00021917,4]
[365797277,1749918639357,-460.0,0.00021917,4]
[365797278,1749918639367,-430.0,0.00021917,4]
[365797279,1749918639377,-460.0,0.00021917,4]
[365797280,1749918639386,-224.57270511,0.00021917,4]
[365797281,1749918639396,-383.8502655,0.00021917,4]
[365797282,1749918639406,-460.0,0.00021917,2]
[365797283,1749918639415,-460.0,0.00021917,4]
[365797284,1749918639425,-320.0,0.00021917,4]
[365797285,1749918639435,-430.0,0.00021917,4]
[365797286,1749918639445,-460.0,0.00021917,4]
[365797287,1749918639454,-460.0,0.00021917,4]
[365797288,1749918639463,-336.5107476,0.00021917,4]
[365797289,1749918639473,-460.0,0.00021917,4]
[365797290,1749918639482,-460.0,0.00021917,4]
[365797291,1749918639491,-460.0,0.00021917,4]
[365797292,1749918639501,-460.0,0.00021917,4]
[365797293,1749918639510,-460.0,0.00021917,4]
[365797294,1749918639523,-460.0,0.00021917,4]
[365797295,1749918639534,-460.0,0.00021917,4]
[365797296,1749918639544,-430.0,0.00021917,4]
[365797297,1749918639553,-460.0,0.00021917,4]
[365797298,1749918639562,-460.0,0.00021917,4]
[365797299,1749918639572,-460.0,0.00021917,4]
[365797300,1749918639582,-460.0,0.00021917,4]
[365797301,1749918639591,-430.0,0.00021917,4]
[365797302,1749918639601,-460.0,0.00021917,4]
[365797303,1749918639613,-430.0,0.00021917,4]
[365797304,1749918639623,-460.0,0.00021917,4]
[365797305,1749918639633,-460.0,0.00021917,4]
[365797306,1749918639642,-443.78409979,0.00021917,4]
[365797307,1749918639652,-213.25082279,0.00021917,4]
[365797308,1749918639662,-521.95540922,0.00021917,4]
[365797309,1749918639672,-430.0,0.00021917,4]
[365797310,1749918639682,-460.0,0.00021917,4]
[365797311,1749918639691,-460.0,0.00021917,4]
[365797312,1749918639700,-460.0,0.00021917,4]
[365797313,1749918639710,-460.0,0.00021917,4]
[365797314,1749918639719,-460.0,0.00021917,4]
[365797315,1749918639728,-420.0,0.00021917,4]
[365797316,1749918639738,-460.0,0.00021917,4]
[365797317,1749918639747,-400.0,0.00021917,4]
[365797318,1749918639757,-430.0,0.00021917,4]
[365797319,1749918639766,-314.78387305,0.00021917,4]
[365797320,1749918639776,-232.09559072,0.00021917,4]
[365797321,1749918639785,-500.0,0.00021917,2]
[365797322,1749918639795,-460.0,0.00021917,4]
[365797323,1749918639805,-460.0,0.00021917,4]
[365797324,1749918639814,-430.0,0.00021917,4]
[365797325,1749918639824,-430.0,0.00021917,4]
[365797326,1749918639833,-400.0,0.00021917,4]
[365797327,1749918639843,-430.0,0.00021917,4]
[365797328,1749918639852,-460.0,0.00021917,4]
[365797329,1749918639865,-460.0,0.00021917,4]
[365797330,1749918639875,-460.0,0.00021917,4]
[365797331,1749918639884,-375.24844841,0.00021917,4]
[365797332,1749918639893,-277.36376202,0.00021917,4]
[365797334,1749918639903,-430.0,0.00021917,4]
[365797335,1749918639913,-460.0,0.00021917,4]
[365797336,1749918639923,-460.0,0.00021917,4]
[365797337,1749918639933,-460.0,0.00021917,4]
[365797338,1749918639943,-460.0,0.00021917,4]
[365797339,1749918639954,-460.0,0.00021917,4]
[365797340,1749918639964,-460.0,0.00021917,4]
[365797341,1749918639974,-324.46209184,0.00021917,4]
[365797342,1749918639984,-460.0,0.00021917,4]
[365797343,1749918639994,-373.12661651,0.00021917,4]
[365797344,1749918640005,-301.68828176,0.00021917,4]
[365797345,1749918640014,-264.63030653,0.00021917,4]
[365797346,1749918640024,-464.90269576,0.00021917,4]
[365797347,1749918640034,-460.0,0.00021917,4]
[365797348,1749918640044,-460.0,0.00021917,4]
[365797349,1749918640054,-430.0,0.00021917,4]
[365797350,1749918640064,-460.0,0.00021917,4]
[365797351,1749918640076,-430.0,0.00021917,4]
[365797352,1749918640085,-460.0,0.00021917,4]
[365797353,1749918640095,-460.0,0.00021917,4]
[365797354,1749918640107,-460.0,0.00021917,4]
[365797355,1749918640117,-460.0,0.00021917,4]
[365797356,1749918640126,-460.0,0.00021917,4]
[365797357,1749918640137,-460.0,0.00021917,4]
[365797358,1749918640147,-460.0,0.00021917,4]
[365797359,1749918640158,-460.0,0.00021917,4]
[365797360,1749918640168,-460.0,0.00021917,4]
[365797361,1749918640178,-460.0,0.00021917,4]
[365797362,1749918640188,-430.0,0.00021917,4]
[365797363,1749918640198,-460.0,0.00021917,4]
[365797364,1749918640208,-460.0,0.00021917,4]
[365797365,1749918640217,-400.0,0.00021917,4]
[365797366,1749918640227,-460.0,0.00021917,4]
[365797367,1749918640236,-460.0,0.00021917,4]
[365797368,1749918640246,-361.61042121,0.00021917,4]
[365797369,1749918640256,-460.0,0.00021917,4]
[365797370,1749918640265,-460.0,0.00021917,4]
[365797372,1749918640275,-450.45932334,0.00021917,4]
[365797374,1749918640285,-460.0,0.00021917,4]
[365797375,1749918640294,-460.0,0.00021917,4]
[365797399,1749918640511,-460.0,0.00021917,4]
[365797401,1749918640521,-460.0,0.00021917,4]
[365797403,1749918640531,-163.47970621,0.00021917,4]
[365797405,1749918640541,-581.23456892,0.00021917,4]
[365797407,1749918640550,-460.0,0.00021917,4]
[365797409,1749918640560,-319.61778017,0.00021917,4]
[365797410,1749918640570,-405.24497119,0.00021917,4]
[365797412,1749918640580,-460.0,0.00021917,4]
[365797414,1749918640590,-460.0,0.00021917,4]
[365797416,1749918640600,-460.0,0.00021917,4]
[365797417,1749918640610,-460.0,0.00021917,4]
[365797418,1749918640619,-460.0,0.00021917,4]
[365797419,1749918640629,-430.0,0.00021917,4]
[365797420,1749918640639,-460.0,0.00021917,4]
[365797421,1749918640648,-460.0,0.00021917,4]
[365797422,1749918640657,-460.0,0.00021917,4]
[365797423,1749918640668,-460.0,0.00021917,4]
[365797424,1749918640677,-460.0,0.00021917,4]
[365797425,1749918640687,-432.29220232,0.00021917,4]
[365797426,1749918640696,-430.0,0.00021917,4]
[365797427,1749918640706,-460.0,0.00021917,4]
[365797428,1749918640716,-208.40108148,0.00021917,4]
[365797429,1749918640725,-460.0,0.00021917,4]
[365797430,1749918640735,-460.0,0.00021917,4]
[365797431,1749918640745,-460.0,0.00021917,4]
[365797432,1749918640754,-430.0,0.00021917,4]
[365797433,1749918640764,-530.4,0.00021917,4]
[365797434,1749918640774,-430.0,0.00021917,4]
[365797435,1749918640783,-483.11301354,0.00021917,4]
[365797436,1749918640793,-460.0,0.00021917,4]
[365797437,1749918640803,-460.0,0.00021917,4]
[365797438,1749918640812,-460.0,0.00021917,4]
[365797439,1749918640822,-515.40924489,0.00021917,4]
[365797440,1749918640831,-158.21288016,0.00021917,4]
[365797441,1749918640841,-460.0,0.00021917,4]
[365797442,1749918640850,-460.0,0.00021917,4]
[365797443,1749918640862,-460.0,0.00021917,4]
[365797444,1749918640872,-460.0,0.00021917,4]
[365797445,1749918640881,-430.0,0.00021917,4]
[365797446,1749918640891,-442.71129028,0.00021917,4]
[365797447,1749918640901,-460.0,0.00021917,4]
[365797448,1749918640911,-460.0,0.00021917,4]
[365797449,1749918640920,-460.0,0.00021917,4]
[365797450,1749918640930,-460.0,0.00021917,4]
[365797451,1749918640939,-457.65377488,0.00021917,4]
[365797452,1749918640949,-430.0,0.00021917,4]
[365797453,1749918640959,-460.0,0.00021917,4]
[365797454,1749918640969,-460.0,0.00021917,4]
[365797455,1749918640978,-460.0,0.00021917,4]
[365797456,1749918640987,-460.0,0.00021917,4]
[365797457,1749918640997,-432.70753572,0.00021917,4]
[365797458,1749918641007,-434.09308653,0.00021917,4]
[365797459,1749918641017,-460.0,0.00021917,4]
[365797460,1749918641026,-430.0,0.00021917,4]
[365797461,1749918641035,-460.0,0.00021917,4]
[365797462,1749918641045,-230.83379737,0.00021917,4]
[365797463,1749918641054,-460.0,0.00021917,4]
[365797464,1749918641064,-460.0,0.00021917,4]
[365797465,1749918641075,-430.80518927,0.00021917,4]
[365797466,1749918641085,-430.0,0.00021917,4]
[365797467,1749918641095,-430.56809899,0.00021917,4]